bitfinex-derivatives/quotes_SOLF0:USTF0_20250319
["timestamp","ask_amount","ask_price","bid_price","bid_amount"]
[1742357136606,7.97502874,126.3,126.28,13.001513]
[1742357136806,0.05682874,126.3,126.28,13.001513]
[1742357138602,7.97512874,126.3,126.28,13.001513]
[1742357139208,0.05682874,126.3,126.29,13.001513]
[1742357140407,0.05682874,126.3,126.28,20.920613]
[1742357141914,0.05682874,126.3,126.28,13.001513]
[1742357142808,0.05682874,126.3,126.28,20.920913]
[1742357145013,0.05682874,126.3,126.29,20.920413]
[1742357146017,0.05682874,126.3,126.29,13.001513]
[1742357146213,0.05682874,126.3,126.28,20.920713]
[1742357146508,7.97562874,126.3,126.27,36.52565834]
[1742357146714,13.05834174,126.3,126.27,0.00575834]
[1742357147213,7.9192,126.29,126.27,0.00575834]
[1742357148312,7.97532874,126.3,126.27,20.92727134]
[1742357148611,0.05682874,126.3,126.28,13.001513]
[1742357148815,0.05682874,126.3,126.28,20.920713]
[1742357149015,0.05682874,126.3,126.29,13.001513]
[1742357150815,0.05682874,126.3,126.28,13.001513]
[1742357151016,0.05682874,126.3,126.28,20.920513]
[1742357152117,7.97512874,126.3,126.28,13.001513]
[1742357152819,0.05682874,126.3,126.28,20.921013]
[1742357153019,0.05682874,126.3,126.28,13.001513]
[1742357154218,0.05682874,126.3,126.28,20.920613]
[1742357154615,7.97512874,126.3,126.28,13.001513]
[1742357155517,0.05682874,126.3,126.28,20.920813]
[1742357160922,7.97512874,126.3,126.28,13.001513]
[1742357161125,7.97512874,126.3,126.27,20.92707134]
[1742357162735,0.05682874,126.3,126.28,7.9194]
[1742357163631,0.05682874,126.3,126.29,7.9189]
[1742357164826,0.05682874,126.3,126.27,0.00575834]
[1742357165222,0.05682874,126.3,126.27,13.00727134]
[1742357165731,7.97522874,126.3,126.27,20.92707134]
[1742357166330,7.919,126.29,126.27,13.00727134]
[1742357166627,7.919,126.29,126.27,0.00575834]
[1742357166836,13.001513,126.28,126.27,0.00575834]
[1742357167138,20.921013,126.28,126.27,0.00575834]
[1742357169133,49.400613,126.29,126.27,0.00575834]
[1742357169339,0.05682874,126.3,126.27,13.00727134]
[1742357169735,40.93461959,126.3,126.27,20.92697134]
[1742357170133,33.01611959,126.3,126.27,20.92697134]
[1742357170537,33.01611959,126.3,126.28,7.9193]
[1742357170837,33.01611959,126.3,126.28,20.920813]
[1742357171736,40.93441959,126.3,126.28,13.001513]
[1742357172041,40.93441959,126.3,126.27,20.92707134]
[1742357172340,7.97512874,126.3,126.27,20.92707134]
[1742357172842,0.05682874,126.3,126.28,7.9195]
[1742357173141,0.05682874,126.3,126.29,13.001513]
[1742357175943,0.05682874,126.3,126.28,20.920613]
[1742357178147,7.97512874,126.3,126.28,20.920613]
[1742357178342,7.97512874,126.3,126.28,13.001513]
[1742357179032,7.97512874,126.3,126.27,7.92555834]
[1742357179033,7.97512874,126.3,126.27,20.92707134]
[1742357180540,0.05682874,126.3,126.28,20.920913]
[1742357180842,0.05682874,126.3,126.28,7.9194]
[1742357181444,7.97522874,126.3,126.27,20.92707134]
[1742357181743,0.05682874,126.3,126.28,13.001513]
[1742357181945,0.05682874,126.3,126.29,13.001513]
[1742357182949,0.05682874,126.3,126.29,20.920413]
[1742357188556,0.05682874,126.3,126.28,7.9192]
[1742357188853,0.05682874,126.3,126.28,13.001513]
[1742357189158,0.05682874,126.3,126.29,7.9189]
[1742357189957,0.05682874,126.3,126.28,20.920813]
[1742357193961,0.05682874,126.3,126.29,20.920413]
[1742357195261,0.05682874,126.3,126.28,7.9192]
[1742357195462,0.05682874,126.3,126.28,20.920713]
[1742357195862,0.05682874,126.3,126.29,20.920413]
[1742357196364,0.05682874,126.3,126.29,13.001513]
[1742357197270,0.05682874,126.3,126.28,20.920713]
[1742357197666,7.97512874,126.3,126.28,7.9192]
[1742357198469,7.97512874,126.3,126.27,20.92707134]
[1742357201969,7.9189,126.29,126.27,13.00727134]
[1742357202168,0.05682874,126.3,126.27,13.00727134]
[1742357203569,7.97542874,126.3,126.28,13.001513]
[1742357203970,0.05682874,126.3,126.28,13.001513]
[1742357204574,0.05682874,126.3,126.29,13.001513]
[1742357205871,7.97502874,126.3,126.29,13.001513]
[1742357206770,0.05682874,126.3,126.29,13.001513]
[1742357207472,7.97502874,126.3,126.29,13.001513]
[1742357207971,7.97502874,126.3,126.28,13.001513]
[1742357208167,0.05682874,126.3,126.29,13.001513]
[1742357208373,11.02676892,126.33,126.29,13.001513]
[1742357208572,11.02676892,126.33,126.32,13.001513]
[1742357208976,43.98605977,126.33,126.32,13.001513]
[1742357211776,7.97642243,126.34,126.32,13.001513]
[1742357213480,0.06062243,126.34,126.33,13.001513]
[1742357214082,0.06062243,126.34,126.33,20.917913]
[1742357216078,0.06062243,126.34,126.33,13.001513]
[1742357218689,7.97632243,126.34,126.33,13.001513]
[1742357220194,0.06062243,126.34,126.33,13.001513]
[1742357225791,0.06062243,126.34,126.33,20.917913]
[1742357226992,0.06062243,126.34,126.33,13.001513]
[1742357230792,7.97632243,126.34,126.32,13.001513]
[1742357230993,0.06062243,126.34,126.32,13.001513]
[1742357232003,7.9164,126.33,126.32,13.001513]
[1742357232300,0.06062243,126.34,126.32,13.001513]
[1742357232501,7.97672243,126.34,126.32,13.001513]
[1742357232801,0.06062243,126.34,126.32,13.001513]
[1742357233598,7.9164,126.33,126.32,13.001513]
[1742357235702,28.52062243,126.34,126.31,13.05355398]
[1742357236198,28.52062243,126.34,126.32,13.001513]
[1742357237207,28.52062243,126.34,126.33,13.001513]
[1742357237499,7.97672243,126.34,126.33,13.001513]
[1742357240908,7.9167,126.33,126.32,13.001513]
[1742357243110,0.06062243,126.34,126.32,13.001513]
[1742357243503,0.06062243,126.34,126.31,13.05355398]
[1742357243703,7.9164,126.33,126.31,13.05355398]
[1742357244001,7.9164,126.33,126.32,13.001513]
[1742357247517,0.06062243,126.34,126.31,0.05204098]
[1742357247518,0.06062243,126.34,126.31,13.05355398]
[1742357247703,28.46,126.33,126.31,0.05204098]
[1742357248012,0.06062243,126.34,126.32,13.001513]
[1742357248212,7.97682243,126.34,126.33,13.001513]
[1742357248413,0.06062243,126.34,126.33,13.001513]
[1742357250715,7.97632243,126.34,126.32,13.001513]
[1742357251511,0.06062243,126.34,126.33,13.001513]
[1742357252715,0.06062243,126.34,126.33,20.917913]
[1742357253017,0.06062243,126.34,126.33,13.001513]
[1742357255717,0.06062243,126.34,126.33,20.917913]
[1742357255912,0.06062243,126.34,126.33,13.001513]
[1742357261021,0.06062243,126.34,126.33,20.917913]
[1742357263929,43.98605977,126.38,126.35,7.915]
[1742357264120,43.98605977,126.38,126.36,13.001513]
[1742357264323,56.98757277,126.38,126.34,13.001513]
[1742357264523,13.001513,126.36,126.32,13.001513]
[1742357264729,13.001513,126.36,126.31,13.001513]
[1742357264730,41.461513,126.36,126.31,13.001513]
[1742357264924,13.001513,126.34,126.33,0.0586649]
[1742357265629,20.917213,126.34,126.33,0.0586649]
[1742357266532,7.9182,126.3,126.28,13.001513]
[1742357266833,7.9182,126.3,126.27,274.261513]
[1742357267031,13.001513,126.31,126.26,13.001513]
[1742357267230,13.001513,126.29,126.25,13.001513]
[1742357267426,28.46,126.29,126.25,13.001513]
[1742357267626,0.05211287,126.28,126.26,0.05097389]
[1742357268135,13.001513,126.27,126.26,0.05097389]
[1742357268934,20.921613,126.27,126.26,0.05097389]
[1742357271335,7.9231,126.23,126.19,13.001513]
[1742357271636,49.404613,126.23,126.19,7.9249]
[1742357271837,20.924813,126.22,126.17,261.22]
[1742357272032,20.924813,126.22,126.17,274.221513]
[1742357272230,20.924813,126.22,126.18,13.001513]
[1742357272438,13.06113553,126.21,126.18,7.98281419]
[1742357272630,13.06113553,126.21,126.18,0.05711419]
[1742357273237,20.98543553,126.21,126.18,0.05711419]
[1742357274934,7.9246,126.2,126.18,0.05711419]
[1742357275136,49.386113,126.2,126.18,0.05711419]
[1742357277631,28.46,126.2,126.18,0.05711419]
[1742357277828,28.46,126.2,126.18,13.05862719]
[1742357278132,28.46,126.2,126.18,20.98382719]
[1742357280629,28.46,126.2,126.19,20.926613]
[1742357280835,0.05962253,126.21,126.18,13.05862719]
[1742357281033,0.05962253,126.21,126.18,0.05711419]
[1742357281342,13.06113553,126.21,126.18,0.05711419]
[1742357281841,7.9246,126.2,126.18,0.05711419]
[1742357282140,13.001513,126.2,126.18,0.05711419]
[1742357282933,13.06113553,126.21,126.18,0.05711419]
[1742357283640,7.9248,126.2,126.18,0.05711419]
[1742357286439,20.926313,126.2,126.18,0.05711419]
[1742357287238,7.9251,126.19,126.18,0.05711419]
[1742357287438,13.001513,126.2,126.18,0.05711419]
[1742357288744,7.9251,126.19,126.18,0.05711419]
[1742357289740,13.001513,126.2,126.18,0.05711419]
[1742357289945,11.02676892,126.29,126.19,289.96]
[1742357290146,11.02676892,126.29,126.28,13.001513]
[1742357291349,11.02676892,126.29,126.28,20.921013]
[1742357291542,11.02676892,126.29,126.28,13.001513]
[1742357291742,11.02676892,126.29,126.28,20.921013]
[1742357292153,0.05740472,126.3,126.28,13.001513]
[1742357292446,0.05740472,126.3,126.29,20.920413]
[1742357293351,30.5123,126.36,126.29,28.48]
[1742357293549,2.0323,126.36,126.29,28.48]
[1742357293749,28.48,126.35,126.29,28.48]
[1742357294049,28.48,126.35,126.29,36.3985]
[1742357294348,0.05921443,126.33,126.31,0.06077548]
[1742357303348,28.46,126.32,126.21,2.1533]
[1742357303544,28.46,126.32,126.26,28.46]
[1742357303747,20.30617946,126.31,126.23,36.3823]
[1742357303953,24.49277946,126.31,126.23,36.3823]
[1742357304151,20.30617946,126.29,126.22,20.30617946]
[1742357304348,7.9207,126.27,126.22,48.76617946]
[1742357304553,7.97329949,126.27,126.24,0.05603336]
[1742357306058,0.05259949,126.27,126.24,0.05603336]
[1742357307660,7.97289949,126.27,126.24,0.05603336]
[1742357309159,7.9209,126.26,126.24,0.05603336]
[1742357310773,7.9214,126.25,126.24,0.05603336]
[1742357311264,28.48,126.25,126.2,261.32]
[1742357311766,28.48,126.25,126.19,20.30617946]
[1742357311959,7.9229,126.23,126.19,28.23117946]
[1742357312563,0.0500891,126.22,126.2,7.97792586]
[1742357313267,0.0500891,126.22,126.2,0.05392586]
[1742357314967,0.0500891,126.22,126.21,7.9239]
[1742357315975,0.0500891,126.22,126.2,7.97822586]
[1742357317070,0.0500891,126.22,126.21,13.01550048]
[1742357317368,0.0500891,126.22,126.21,20.93940048]
[1742357319178,0.0500891,126.22,126.21,13.01550048]
[1742357323074,0.0500891,126.22,126.21,20.93940048]
[1742357323276,28.48,126.27,126.21,41.49550048]
[1742357323471,41.49550048,126.27,126.21,28.48]
[1742357323776,7.9214,126.25,126.23,13.01550048]
[1742357323971,28.48,126.27,126.23,13.01550048]
[1742357324174,13.01550048,126.28,126.24,13.01550048]
[1742357324368,0.0588518,126.26,126.24,13.0721319]
[1742357325174,0.0588518,126.26,126.25,13.01550048]
[1742357325776,160.83440158,126.33,126.25,13.01550048]
[1742357326080,28.56,126.32,126.29,13.01550048]
[1742357326683,36.4773,126.32,126.29,13.01550048]
[1742357326881,36.53391356,126.32,126.29,13.07277707]
[1742357327081,7.97391356,126.32,126.29,0.05727659]
[1742357327721,7.9177,126.31,126.29,0.05727659]
[1742357328388,7.97381356,126.32,126.29,0.05727659]
[1742357329211,7.97381356,126.32,126.29,7.97617659]
[1742357329420,0.05661356,126.32,126.29,7.97617659]
[1742357329919,0.05661356,126.32,126.3,7.9179]
[1742357330297,0.05661356,126.32,126.29,20.36791933]
[1742357330298,7.97381356,126.32,126.29,20.36791933]
[1742357330510,7.97381356,126.32,126.29,0.05727659]
[1742357330994,7.9177,126.31,126.29,0.05727659]
[1742357332988,28.55661356,126.32,126.29,0.05727659]
[1742357334386,7.9176,126.31,126.29,0.05727659]
[1742357334988,28.55661356,126.32,126.29,0.05727659]
[1742357335686,7.9182,126.3,126.29,0.05727659]
[1742357336086,28.55661356,126.32,126.29,0.05727659]
[1742357336287,7.9179,126.31,126.29,0.05727659]
[1742357338089,28.55661356,126.32,126.29,0.05727659]
[1742357339387,28.55661356,126.32,126.24,38.61532137]
[1742357339388,20.31064274,126.31,126.24,38.61532137]
[1742357339587,20.31064274,126.31,126.25,7.9211]
[1742357339588,22.46874274,126.31,126.25,7.9211]
[1742357339786,22.46874274,126.31,126.24,38.61532137]
[1742357340382,0.05412772,126.29,126.26,7.97557247]
[1742357340689,0.05412772,126.29,126.26,0.05517247]
[1742357341888,0.05412772,126.29,126.26,10.21049384]
[1742357342290,0.05412772,126.29,126.27,7.9201]
[1742357342493,0.05412772,126.29,126.26,10.21049384]
[1742357343491,0.05412772,126.29,126.28,18.07482137]
[1742357343691,28.46,126.34,126.28,10.15532137]
[1742357343889,28.46,126.34,126.29,10.15532137]
[1742357344290,7.9167,126.33,126.29,18.07392137]
[1742357344890,0.05614686,126.32,126.3,0.05360045]
[1742357345391,7.97324686,126.32,126.3,0.05360045]
[1742357347497,0.05614686,126.32,126.3,0.05360045]
[1742357347693,0.05614686,126.32,126.3,7.97180045]
[1742357349096,0.05614686,126.32,126.3,20.96834375]
[1742357351595,0.05614686,126.32,126.3,13.05014375]
[1742357352199,0.05614686,126.32,126.31,12.9965433]
[1742357353000,23.9612478,126.38,126.31,12.9965433]
[1742357353300,23.9612478,126.38,126.3,28.51360045]
[1742357353301,41.5165433,126.37,126.32,12.9965433]
[1742357353601,12.9965433,126.36,126.32,12.9965433]
[1742357353801,7.9155,126.35,126.32,20.9131433]
[1742357354197,7.96591752,126.35,126.32,20.96655873]
[1742357354501,7.96591752,126.35,126.32,13.04995873]
[1742357355797,7.9157,126.34,126.32,13.04995873]
[1742357356002,13.04696082,126.35,126.32,0.05341543]
[1742357356197,7.9164,126.33,126.32,0.05341543]
[1742357356408,20.9129433,126.33,126.32,0.05341543]
[1742357359198,7.9164,126.33,126.32,0.05341543]
[1742357359397,49.3926433,126.34,126.32,0.05341543]
[1742357359599,28.48,126.34,126.32,0.05341543]
[1742357361007,7.9164,126.33,126.32,0.05341543]
[1742357363404,7.9183,126.3,126.28,12.9965433]
[1742357364505,7.97786341,126.3,126.28,13.04683224]
[1742357365911,7.9189,126.29,126.28,0.05028894]
[1742357366114,20.9154433,126.29,126.28,0.05028894]
[1742357372924,20.97460671,126.3,126.28,0.05028894]
[1742357373222,7.97806341,126.3,126.28,0.05028894]
[1742357373426,0.05956341,126.3,126.28,0.05028894]
[1742357373619,0.05956341,126.3,126.28,13.04683224]
[1742357374024,0.05956341,126.3,126.28,20.96623224]
[1742357375131,0.05956341,126.3,126.28,13.04683224]
[1742357376533,0.05956341,126.3,126.28,20.96603224]
[1742357376729,7.97806341,126.3,126.28,13.04683224]
[1742357377536,7.9189,126.29,126.28,0.05028894]
[1742357377731,20.9154433,126.29,126.28,0.05028894]
[1742357381643,7.9214,126.25,126.21,12.9965433]
[1742357382043,7.9214,126.25,126.22,20.9192433]
[1742357382244,49.3775433,126.26,126.22,12.9965433]
[1742357382444,28.46,126.26,126.23,12.9965433]
[1742357382742,0.05204837,126.25,126.24,7.9216]
[1742357383643,0.05204837,126.25,126.23,20.97087438]
[1742357383845,0.05204837,126.25,126.24,12.9965433]
[1742357384546,0.05204837,126.25,126.23,13.04847438]
[1742357384841,7.97384837,126.25,126.23,13.04847438]
[1742357385249,7.922,126.24,126.23,0.05193108]
[1742357389151,20.9185433,126.24,126.23,0.05193108]
[1742357390954,7.922,126.24,126.23,0.05193108]
[1742357395856,7.9244,126.21,126.19,261.32]
[1742357396157,28.48,126.22,126.18,12.9965433]
[1742357396455,7.9248,126.2,126.17,25.0183433]
[1742357396652,41.4765433,126.21,126.17,12.9965433]
[1742357396852,41.4765433,126.21,126.16,12.9965433]
[1742357397047,7.98137946,126.2,126.18,0.06041335]
[1742357397755,7.9251,126.19,126.18,0.06041335]
[1742357399759,7.98127946,126.2,126.18,0.06041335]
[1742357399962,0.05647946,126.2,126.18,0.06041335]
[1742357400460,7.98157946,126.2,126.18,0.06041335]
[1742357400760,13.05302276,126.2,126.18,0.06041335]
[1742357400956,7.9251,126.19,126.18,0.06041335]
[1742357401157,20.9216433,126.19,126.18,0.06041335]
[1742357401362,20.9216433,126.19,126.13,20.9252433]
[1742357401363,12.9965433,126.19,126.13,20.9252433]
[1742357401556,28.48,126.18,126.14,12.9965433]
[1742357401756,28.48,126.18,126.14,20.9242433]
[1742357402157,36.4062,126.18,126.14,12.9965433]
[1742357402558,0.05592589,126.17,126.15,7.97746354]
[1742357402754,0.05592589,126.17,126.15,13.04670684]
[1742357402961,0.05592589,126.17,126.16,20.9235433]
[1742357404967,28.48,126.2,126.18,7.9253]
[1742357405165,28.48,126.2,126.17,12.9965433]
[1742357405664,28.48,126.2,126.17,20.9226433]
[1742357406068,28.53515842,126.2,126.17,20.9833431]
[1742357407368,36.45975842,126.2,126.17,20.9833431]
[1742357412767,36.45975842,126.2,126.17,7.9867998]
[1742357414768,36.45975842,126.2,126.17,0.0606998]
[1742357415465,7.9258,126.18,126.17,0.0606998]
[1742357415668,12.9965433,126.18,126.13,12.9965433]
[1742357415964,7.9284,126.14,126.11,12.9965433]
[1742357416160,28.48,126.14,126.11,12.9965433]
[1742357416766,0.0582766,126.14,126.12,12.9965433]
[1742357417762,7.9869766,126.14,126.12,12.9965433]
[1742357418070,0.0582766,126.14,126.11,13.04817474]
[1742357418773,0.0582766,126.14,126.11,20.97797474]
[1742357419368,7.9868766,126.14,126.11,13.04817474]
[1742357419974,0.0582766,126.14,126.12,12.9965433]
[1742357420773,0.0582766,126.14,126.12,20.9260433]
[1742357421174,0.0582766,126.14,126.12,12.9965433]
[1742357421370,0.0582766,126.14,126.13,7.9289]
[1742357421775,0.0582766,126.14,126.12,12.9965433]
[1742357421977,0.0582766,126.14,126.11,20.97797474]
[1742357424472,0.0582766,126.14,126.11,13.04817474]
[1742357424777,28.48,126.13,126.11,0.05163144]
[1742357425576,28.48,126.13,126.11,7.98173144]
[1742357426578,28.48,126.13,126.11,20.97827474]
[1742357427275,28.48,126.13,126.11,7.98173144]
[1742357428878,36.4091,126.13,126.11,0.05163144]
[1742357429581,7.9295,126.12,126.11,0.05163144]
[1742357430572,36.4093,126.13,126.11,0.05163144]
[1742357431582,28.48,126.13,126.11,0.05163144]
[1742357431786,28.48,126.13,126.11,13.04817474]
[1742357431981,0.0582766,126.14,126.12,12.9965433]
[1742357432183,0.0582766,126.14,126.13,12.9965433]
[1742357432980,0.0582766,126.14,126.12,20.9257433]
[1742357433385,0.0582766,126.14,126.12,12.9965433]
[1742357433586,0.0582766,126.14,126.11,0.05163144]
[1742357434084,7.9869766,126.14,126.11,0.05163144]
[1742357434887,7.9869766,126.14,126.11,20.97837474]
[1742357435188,7.9289,126.13,126.11,13.04817474]
[1742357435380,7.9289,126.13,126.11,0.05163144]
[1742357435883,7.9295,126.12,126.11,0.05163144]
[1742357436586,36.4295,126.12,126.11,0.05163144]
[1742357439188,49.4260433,126.12,126.11,0.05163144]
[1742357441181,28.5,126.12,126.11,0.05163144]
[1742357448292,36.4295,126.12,126.11,0.05163144]
[1742357448792,28.5,126.12,126.11,0.05163144]
[1742357451592,36.4295,126.12,126.11,0.05163144]
[1742357451789,28.5,126.12,126.11,0.05163144]
[1742357453896,36.4295,126.12,126.11,0.05163144]
[1742357459704,0.0582766,126.14,126.11,13.04817474]
[1742357459907,28.5382766,126.14,126.12,12.9965433]
[1742357460403,28.5382766,126.14,126.11,13.04817474]
[1742357460598,0.0582766,126.14,126.11,13.04817474]
[1742357461006,7.9868766,126.14,126.11,20.97827474]
[1742357462910,0.0582766,126.14,126.11,20.97827474]
[1742357464610,0.0582766,126.14,126.12,7.9295]
[1742357465915,0.0582766,126.14,126.11,20.97807474]
[1742357466214,7.9866766,126.14,126.11,20.97807474]
[1742357466615,0.0582766,126.14,126.11,20.97807474]
[1742357468919,0.0582766,126.14,126.12,7.9295]
[1742357469311,0.0582766,126.14,126.11,20.97787474]
[1742357469506,0.0582766,126.14,126.11,13.04817474]
[1742357469713,0.0582766,126.14,126.12,12.9965433]
[1742357469909,0.0582766,126.14,126.13,12.9965433]
[1742357470916,0.0582766,126.14,126.12,20.9257433]
[1742357472015,0.0582766,126.14,126.12,7.9292]
[1742357472220,0.0582766,126.14,126.11,20.97807474]
[1742357472824,0.0582766,126.14,126.11,7.98153144]
[1742357473121,7.9866766,126.14,126.11,20.97807474]
[1742357473323,0.0582766,126.14,126.11,20.97807474]
[1742357474824,7.9865766,126.14,126.11,20.97807474]
[1742357475321,7.9295,126.13,126.11,0.05163144]
[1742357475523,36.4095,126.13,126.11,0.05163144]
[1742357476223,7.9295,126.12,126.11,0.05163144]
[1742357476420,28.48,126.13,126.11,0.05163144]
[1742357477128,36.4094,126.13,126.11,0.05163144]
[1742357477722,7.9295,126.12,126.11,0.05163144]
[1742357484722,20.9260433,126.12,126.11,0.05163144]
[1742357484927,7.9311,126.1,126.07,20.9288433]
[1742357485124,12.9965433,126.11,126.07,12.9965433]
[1742357485328,12.9965433,126.12,126.07,12.9965433]
[1742357485528,7.9305,126.11,126.08,7.932]
[1742357486118,7.9875875,126.11,126.08,7.9856002]
[1742357486730,7.9308,126.1,126.08,7.9856002]
[1742357487422,7.9308,126.1,126.08,0.0536002]
[1742357489733,36.4108,126.1,126.08,0.0536002]
[1742357491029,7.9314,126.09,126.08,0.0536002]
[1742357493036,36.4111,126.1,126.08,0.0536002]
[1742357493236,36.4111,126.1,126.08,13.0501435]
[1742357494439,7.9314,126.09,126.08,13.0501435]
[1742357494939,28.48,126.1,126.08,13.0501435]
[1742357495438,36.4114,126.1,126.08,13.0501435]
[1742357497035,7.9314,126.09,126.08,0.0536002]
[1742357497239,12.9965433,126.09,126.02,12.9965433]
[1742357497441,20.9301433,126.06,126.03,12.9965433]
[1742357497738,41.4765433,126.07,126.03,12.9965433]
[1742357497933,28.48,126.07,126.03,12.9965433]
[1742357498335,0.05062104,126.06,126.04,0.05501734]
[1742357498743,7.98432104,126.06,126.04,0.05501734]
[1742357499339,0.05062104,126.06,126.04,0.05501734]
[1742357499541,0.05062104,126.06,126.05,12.9965433]
[1742357499941,0.05062104,126.06,126.05,20.9304433]
[1742357504749,0.05062104,126.06,126.05,12.9965433]
[1742357506845,0.05062104,126.06,126.04,274.77156064]
[1742357508455,0.05062104,126.06,126.04,0.05501734]
[1742357508852,7.9339,126.05,126.04,0.05501734]
[1742357509153,0.05062104,126.06,126.04,0.05501734]
[1742357509455,7.98422104,126.06,126.04,0.05501734]
[1742357509641,7.98422104,126.06,126.04,13.05156064]
[1742357512455,0.05062104,126.06,126.04,13.05156064]
[1742357513053,0.05062104,126.06,126.05,12.9965433]
[1742357517963,0.05062104,126.06,126.04,13.05156064]
[1742357518563,7.98412104,126.06,126.04,13.05156064]
[1742357519665,0.05062104,126.06,126.04,13.05156064]
[1742357520565,7.98402104,126.06,126.04,13.05156064]
[1742357520765,0.05062104,126.06,126.04,0.05501734]
[1742357521263,7.98452104,126.06,126.04,0.05501734]
[1742357522664,0.05062104,126.06,126.05,12.9965433]
[1742357523168,7.98392104,126.06,126.05,12.9965433]
[1742357523770,7.98392104,126.06,126.04,13.05156064]
[1742357527762,0.05062104,126.06,126.04,13.05156064]
[1742357528262,0.05062104,126.06,126.05,12.9965433]
[1742357528672,0.05062104,126.06,126.05,20.9304433]
[1742357535577,0.05062104,126.06,126.05,12.9965433]
[1742357536879,0.05062104,126.06,126.05,20.9304433]
[1742357546986,7.98402104,126.06,126.04,0.05501734]
[1742357547588,0.05062104,126.06,126.04,0.05501734]
[1742357549683,0.05062104,126.06,126.04,20.98606064]
[1742357550691,0.05062104,126.06,126.05,20.9304433]
[1742357569202,0.05062104,126.06,126.05,12.9965433]
[1742357580714,0.05062104,126.06,126.04,13.05156064]
[1742357581113,7.98392104,126.06,126.04,13.05156064]
[1742357583219,7.9339,126.05,126.04,0.05501734]
[1742357585212,20.9304433,126.05,126.04,0.05501734]
[1742357585412,12.9965433,126.05,126.01,12.9965433]
[1742357586021,12.9965433,126.02,125.92,40.66229441]
[1742357586216,41.4765433,126.01,125.97,12.9965433]
[1742357586414,7.99503009,126.0,125.98,0.05764163]
[1742357587110,0.05763009,126.0,125.98,0.05764163]
[1742357587318,7.9377,125.99,125.98,0.05764163]
[1742357588816,20.99147339,126.0,125.98,0.05764163]
[1742357589922,25.32597339,126.0,125.98,0.05764163]
[1742357592520,4.39213009,126.0,125.98,0.05764163]
[1742357593013,17.38867339,126.0,125.98,0.05764163]
[1742357593822,25.32607339,126.0,125.98,0.05764163]
[1742357597127,17.38867339,126.0,125.98,0.05764163]
[1742357597825,4.39213009,126.0,125.98,0.05764163]
[1742357598029,0.05763009,126.0,125.98,0.05764163]
[1742357598429,0.05763009,126.0,125.98,7.99554163]
[1742357601228,13.05417339,126.0,125.98,0.05764163]
[1742357601527,12.9965433,125.99,125.98,0.05764163]
[1742357601829,20.9342433,125.99,125.98,0.05764163]
[1742357602026,20.9342433,125.99,125.95,20.9363433]
[1742357602729,7.9384,125.98,125.95,7.9398]
[1742357602930,36.4184,125.98,125.95,7.9398]
[1742357603132,36.4184,125.98,125.95,7.99108301]
[1742357603629,7.9392,125.97,125.95,0.05128301]
[1742357604029,0.0538164,125.97,125.95,0.05128301]
[1742357604332,7.9396,125.96,125.95,0.05128301]
[1742357604933,20.9896597,125.97,125.95,0.05128301]
[1742357605127,0.0538164,125.97,125.95,0.05128301]
[1742357605326,0.0538164,125.97,125.95,13.04782631]
[1742357605732,0.0538164,125.97,125.96,20.9361433]
[1742357608033,0.0538164,125.97,125.95,13.04782631]
[1742357609230,0.0538164,125.97,125.95,0.05128301]
[1742357610121,20.9894597,125.97,125.95,0.05128301]
[1742357610928,7.9396,125.96,125.95,0.05128301]
[1742357614134,20.9896597,125.97,125.95,0.05128301]
[1742357614435,13.0503597,125.97,125.95,0.05128301]
[1742357614737,0.0538164,125.97,125.95,7.99118301]
[1742357615823,7.9928164,125.97,125.95,0.05128301]
[1742357616126,13.0503597,125.97,125.95,0.05128301]
[1742357616637,20.9361433,125.96,125.95,0.05128301]
[1742357619237,0.0538164,125.97,125.95,0.05128301]
[1742357619238,20.9896597,125.97,125.95,0.05128301]
[1742357620431,7.9396,125.96,125.95,0.05128301]
[1742357620935,20.9895597,125.97,125.95,0.05128301]
[1742357621134,7.9930164,125.97,125.95,0.05128301]
[1742357621533,0.0538164,125.97,125.95,7.99128301]
[1742357622040,7.9930164,125.97,125.95,0.05128301]
[1742357622940,7.9930164,125.97,125.95,7.99148301]
[1742357623333,7.9930164,125.97,125.95,0.05128301]
[1742357623632,0.0538164,125.97,125.95,0.05128301]
[1742357623838,0.0538164,125.97,125.95,13.04782631]
[1742357624344,0.0538164,125.97,125.95,20.98772631]
[1742357625940,7.9929164,125.97,125.95,20.98772631]
[1742357626439,7.9929164,125.97,125.95,7.99118301]
[1742357626640,0.0538164,125.97,125.95,7.99118301]
[1742357631047,7.9928164,125.97,125.95,7.99118301]
[1742357631248,7.9928164,125.97,125.95,0.05128301]
[1742357632146,0.0538164,125.97,125.95,7.99148301]
[1742357635250,7.9928164,125.97,125.95,7.99148301]